bitfinex/quotes_ETHUSD_20240530
["timestamp","ask_amount","ask_price","bid_price","bid_amount"]
[1717079190906,1.908,3786.1,3785.6,35.0]
[1717079191245,1.908,3786.1,3785.7,0.03096088]
[1717079191568,1.908,3786.5,3785.6,37.64155]
[1717079191772,1.908,3786.5,3785.8,0.03096596]
[1717079191927,1.908,3786.5,3785.7,0.03101934]
[1717079192128,1.908,3786.5,3785.9,0.03091258]
[1717079192355,2.3892847,3786.5,3785.8,0.03096596]
[1717079192562,2.3892847,3786.5,3786.0,0.0308592]
[1717079192773,2.3892847,3786.5,3785.9,0.03091258]
[1717079192954,0.26533617,3786.4,3786.1,0.03080583]
[1717079193138,1.908,3786.5,3786.0,0.0308592]
[1717079193343,1.908,3786.5,3786.2,0.03075246]
[1717079193538,1.908,3786.5,3786.1,0.03080583]
[1717079193744,1.908,3786.5,3786.3,0.03069909]
[1717079193945,0.1908,3786.4,3786.2,0.03075246]
[1717079194158,0.1908,3786.4,3785.6,37.64155]
[1717079194369,1.908,3786.5,3786.3,0.03069909]
[1717079194549,1.908,3786.5,3785.6,37.64155]
[1717079194856,1.908,3786.5,3785.7,0.03101934]
[1717079196147,1.908,3786.5,3785.7,35.03101934]
[1717079196464,2.64051,3787.2,3785.8,2.64142]
[1717079196671,1.908,3786.8,3785.8,10.00142]
[1717079196871,1.908,3786.8,3785.9,0.03089588]
[1717079197047,1.908,3786.8,3786.0,35.0]
[1717079197249,1.908,3786.8,3786.1,0.03076686]
[1717079197560,0.454865,3786.7,3786.1,0.03076686]
[1717079198474,1.908,3786.4,3786.1,0.03076686]
[1717079198989,1.908,3786.4,3786.2,0.0283766]
[1717079199410,1.908,3786.6,3785.9,35.0]
[1717079199617,1.908,3786.6,3786.3,0.03069074]
[1717079199925,1.908,3786.6,3786.4,0.03063737]
[1717079200421,2.362883,3786.6,3785.9,35.0]
[1717079200706,2.64059,3787.1,3786.1,2.64121]
[1717079200863,1.908,3787.0,3786.2,0.0306578]
[1717079201272,1.908,3787.0,3786.3,35.0]
[1717079201671,1.908,3787.0,3786.4,0.0333254]
[1717079202742,1.908,3787.0,3786.1,2.64121]
[1717079202943,1.908,3787.0,3786.5,0.03049492]
[1717079203221,2.3892649,3787.0,3786.1,37.64121]
[1717079203375,1.908,3787.0,3786.1,37.64121]
[1717079203719,1.908,3787.0,3786.2,0.03344184]
[1717079205221,2.64031,3787.5,3786.3,2.64106]
[1717079205374,2.64049,3787.2,3786.3,2.94183914]
[1717079205887,3.0,3788.0,3786.3,2.94183914]
[1717079205888,2.64025,3787.6,3786.3,2.94183914]
[1717079206099,1.908,3787.3,3786.3,2.94183914]
[1717079206510,1.908,3787.3,3786.6,2.64087]
[1717079206725,1.908,3787.3,3786.7,0.29463389]
[1717079207138,1.908,3787.3,3786.7,0.03054689]
[1717079211320,2.64025,3787.6,3786.7,0.03054689]
[1717079211490,1.908,3787.4,3786.7,0.03054689]
[1717079212717,1.97401701,3787.4,3786.7,0.03054689]
[1717079213432,2.64043,3787.3,3786.7,0.03054689]
[1717079213615,3.095273,3787.3,3786.7,0.03054689]
[1717079213791,1.908,3787.4,3786.5,2.64095]
[1717079213990,1.908,3787.4,3786.8,0.03311081]
[1717079214228,1.908,3787.4,3786.5,2.64095]
[1717079214426,1.908,3787.4,3786.9,0.03305261]
[1717079214632,1.908,3787.4,3786.5,2.64095]
[1717079214789,1.908,3787.4,3787.0,0.03299441]
[1717079214998,1.908,3787.4,3786.5,2.64095]
[1717079215194,1.908,3787.4,3787.1,0.03293621]
[1717079215410,1.908,3787.4,3786.7,2.64075]
[1717079215598,1.908,3787.4,3787.2,0.03287802]
[1717079215799,1.908,3787.4,3786.7,2.64075]
[1717079216237,1.908,3787.4,3786.8,0.03311081]
[1717079217395,1.908,3787.4,3786.9,2.64068]
[1717079217705,1.908,3787.4,3786.9,2.67365973]
[1717079220201,2.362818,3787.4,3786.9,0.03297973]
[1717079220406,2.64042,3787.3,3786.9,0.03297973]
[1717079220724,2.64042,3787.3,3786.5,2.64089]
[1717079221141,2.64042,3787.3,3786.6,0.03316042]
[1717079226485,1.908,3787.4,3786.7,2.64079]
[1717079226738,1.908,3787.4,3786.7,2.90818504]
[1717079226911,1.908,3787.4,3786.8,0.03307133]
[1717079228448,2.63999,3787.9,3786.8,0.03307133]
[1717079228645,3.0,3788.6,3787.1,2.64048]
[1717079228886,2.63999,3787.9,3787.1,10.00048]
[1717079229192,2.63999,3787.9,3787.2,0.03274745]
[1717079229546,3.094789,3787.9,3787.2,0.03274745]
[1717079229787,2.64018,3787.7,3787.2,0.03274745]
[1717079229992,1.908,3787.4,3787.2,0.03274745]
[1717079230157,1.908,3787.4,3786.6,7.36]
[1717079230565,1.908,3787.4,3786.7,0.03296862]
[1717079230872,0.454832,3787.3,3786.7,0.03296862]
[1717079231273,1.908,3787.0,3786.7,0.03296862]
[1717079231479,2.64068,3786.9,3786.7,0.03296862]
[1717079231990,0.06602938,3786.8,3786.7,0.03296862]
[1717079232291,1.908,3787.0,3785.6,2.64152]
[1717079232292,2.64091,3786.6,3785.6,2.64152]
[1717079232690,1.908,3786.5,3785.7,0.03099152]
[1717079242808,4.54891,3786.6,3785.7,0.03099152]
[1717079244356,4.54891,3786.6,3785.7,35.03099152]
[1717079244659,5.022881,3786.6,3785.7,35.03099152]
[1717079246269,5.022881,3786.6,3785.7,0.03099152]
[1717079246769,5.022881,3786.6,3785.7,35.03099152]
[1717079247336,5.022881,3786.6,3785.7,0.03099152]
[1717079248061,2.6411,3786.3,3785.7,0.03099152]
[1717079248244,3.1434071,3786.3,3785.5,7.36]
[1717079248433,1.908,3786.2,3785.8,0.03121097]
[1717079248647,1.908,3786.2,3785.5,7.36]
[1717079248833,0.50514071,3786.1,3785.9,0.03115759]
[1717079249194,0.50514071,3786.1,3785.5,7.36]
[1717079249473,0.50514071,3786.1,3786.0,0.03110421]
[1717079249670,0.50514071,3786.1,3785.5,7.36]
[1717079249847,0.50514071,3786.1,3786.0,0.03110421]
[1717079250173,3.14644071,3786.1,3785.2,2.6418]
[1717079250340,0.796,3785.4,3785.2,2.6418]
[1717079250539,0.796,3785.4,3785.3,0.0291028]
[1717079250840,2.6413,3786.1,3785.2,2.6418]
[1717079251180,0.796,3785.4,3785.3,0.02914391]
[1717079251474,0.796,3785.4,3785.2,2.6418]
[1717079251688,0.796,3785.4,3785.3,0.02914391]
[1717079251828,0.796,3785.4,3785.2,2.6418]
[1717079252027,0.796,3785.4,3785.3,0.02914391]
[1717079252274,0.796,3785.4,3785.2,2.6418]
[1717079252471,0.796,3785.4,3785.3,0.02914391]
[1717079252771,0.796,3785.4,3785.2,2.6418]
[1717079252945,0.796,3785.4,3785.3,0.02914391]
[1717079253270,0.796,3785.4,3785.2,2.6418]
[1717079253432,0.796,3785.4,3785.3,0.02914391]
[1717079253631,0.796,3785.4,3785.2,2.6418]
[1717079253856,0.796,3785.4,3785.3,0.02914391]
[1717079254052,0.796,3785.4,3785.2,2.6418]
[1717079254252,0.796,3785.4,3785.3,0.02914391]
[1717079254457,0.796,3785.4,3785.2,2.6418]
[1717079254661,0.796,3785.4,3785.3,0.02914391]
[1717079254857,0.796,3785.4,3785.2,2.6418]
[1717079255057,0.796,3785.4,3785.3,0.02914391]
[1717079255270,0.796,3785.4,3785.2,2.6418]
[1717079255604,0.796,3785.4,3785.3,0.02914391]
[1717079255962,0.796,3785.4,3785.2,37.6418]
[1717079256160,0.796,3785.4,3785.3,0.02914391]
[1717079256587,0.796,3785.4,3785.2,37.6418]
[1717079256807,0.796,3785.4,3785.3,0.02914391]
[1717079257173,0.796,3785.4,3785.2,37.6418]
[1717079257368,0.796,3785.4,3785.3,0.02914391]
[1717079257800,0.796,3785.4,3785.2,35.0]
[1717079258001,0.796,3785.4,3785.3,0.02914391]
[1717079258298,2.6413,3786.1,3785.3,1.02914391]
[1717079258463,0.796,3785.6,3785.3,1.02914391]
[1717079261262,0.796,3785.6,3785.4,2.64172]
[1717079261473,0.796,3785.6,3785.4,37.67088918]
[1717079264307,0.796,3785.6,3785.4,2.67088918]
[1717079265625,0.796,3785.6,3785.4,3.0379781]
[1717079265821,0.796,3786.3,3785.4,0.3962581]
[1717079266136,2.64006,3787.8,3785.4,0.3962581]
[1717079266137,2.6406,3787.1,3785.4,0.3962581]
[1717079266269,0.796,3786.3,3785.5,9.95588552]
[1717079266603,2.90466,3787.1,3785.5,9.985008]
[1717079266843,0.796,3786.2,3785.5,9.985008]
[1717079266977,2.6406,3787.1,3785.5,2.625008]
[1717079267182,2.6406,3787.1,3785.6,7.96141269]
[1717079267183,0.796,3786.3,3785.6,7.96141269]
[1717079267489,0.796,3786.1,3785.8,2.64144]
[1717079267890,0.796,3786.1,3785.9,0.02892537]
[1717079268102,0.796,3786.1,3785.9,0.29596191]
[1717079268887,0.796,3786.1,3786.0,2.64131]
[1717079269082,0.796,3786.1,3786.0,2.6701861]
[1717079269290,0.79505912,3786.1,3786.0,2.6701861]
[1717079271492,0.79505912,3786.1,3786.0,0.0288761]
[1717079275329,0.79505912,3786.1,3785.7,2.64151]
[1717079275538,2.64096,3786.5,3786.0,0.02879898]
[1717079275724,0.796,3786.1,3785.7,2.64151]
[1717079275924,0.796,3785.8,3785.7,2.64151]
[1717079276789,0.796,3785.8,3785.4,2.64172]
[1717079276993,0.796,3785.6,3785.4,2.64172]
[1717079277208,0.796,3785.6,3785.5,0.02896825]
[1717079277838,0.796,3785.6,3785.3,1.0]
[1717079278130,2.64116,3786.3,3785.3,1.0]
[1717079278131,0.796,3785.4,3785.3,1.0]
[1717079279401,2.64116,3786.3,3785.3,4.005986]
[1717079279603,0.796,3785.6,3785.3,4.005986]
[1717079284520,2.64116,3786.3,3785.3,4.005986]
[1717079284738,0.796,3785.4,3785.3,3.64179]
[1717079285251,0.796,3785.4,3785.3,38.64179]
[1717079285652,0.796,3785.4,3785.3,3.64179]
[1717079287768,0.796,3785.6,3785.3,3.64179]
[1717079288521,0.796,3785.6,3785.3,4.005969]
[1717079288952,0.796,3785.4,3785.3,3.64179]
[1717079290118,0.796,3785.4,3785.3,38.64179]
[1717079291232,2.64116,3786.3,3785.3,38.64179]
[1717079291564,0.796,3785.5,3785.3,38.64179]
[1717079292560,0.796,3785.5,3785.4,0.02914348]
[1717079293760,0.796,3785.5,3785.4,35.02914348]
[1717079293957,2.64116,3786.3,3785.4,35.02914348]
[1717079294268,0.796,3785.5,3785.4,35.02914348]
[1717079294665,0.796,3785.5,3785.4,0.02914348]
[1717079302947,2.64172,3785.4,3785.3,1.0]
[1717079304188,5.64172,3785.4,3785.3,1.0]
[1717079304337,6.285492,3785.4,3785.3,1.0]
[1717079305360,6.835492,3785.4,3785.3,1.0]
[1717079305833,7.081492,3785.4,3785.3,1.0]
[1717079306700,5.64172,3785.4,3785.3,1.0]
[1717079306991,2.64149,3785.8,3785.3,1.0]
[1717079307372,0.796,3785.4,3785.3,1.0]
[1717079309272,3.796,3785.4,3785.3,1.0]
[1717079309579,4.43977,3785.4,3785.3,1.0]
[1717079310500,5.55577,3785.4,3785.3,1.0]
[1717079311400,6.10577,3785.4,3785.3,1.0]
[1717079316256,3.64377,3785.4,3785.3,1.0]
[1717079316510,5.55577,3785.4,3785.3,1.0]
[1717079319202,6.10577,3785.4,3785.3,1.0]
[1717079326933,6.10577,3785.4,3784.2,7.36]
[1717079326934,2.64245,3784.4,3784.2,7.36]
[1717079327119,2.64271,3784.0,3783.4,7.36]
[1717079327324,1.912,3783.9,3783.2,2.64326]
[1717079327491,1.912,3783.5,3783.2,1.507326]
[1717079327698,1.912,3783.5,3783.0,19.79]
[1717079329133,1.912,3783.5,3782.9,2.64347]
[1717079329653,1.912,3783.5,3782.5,10.00371]
[1717079329994,2.64312,3783.4,3782.5,10.00371]
[1717079330393,2.64312,3783.4,3782.5,7.36]
[1717079331021,2.64312,3783.4,3782.5,9.339]
[1717079332929,2.64288,3783.8,3782.6,2.64367]
[1717079333342,2.64288,3783.8,3782.9,2.64344]
[1717079337319,2.64288,3783.8,3783.0,0.02765952]
[1717079337531,2.64288,3783.8,3783.0,0.29476947]
[1717079340243,2.64288,3783.8,3783.0,0.02765952]
[1717079340428,4.55508,3783.5,3783.0,0.02765952]
[1717079340624,4.55508,3783.5,3782.5,11.9827]
[1717079341155,4.55508,3783.5,3782.6,0.02799087]
[1717079343415,4.55508,3783.5,3782.7,2.64358]
[1717079343611,2.64308,3783.5,3782.8,1.20105709]
[1717079343843,4.55482,3783.9,3782.9,2.64345]
[1717079344051,2.64282,3783.9,3782.9,37.64345]
[1717079344254,2.64282,3783.9,3783.0,0.41025255]
[1717079344416,2.64255,3784.3,3783.1,2.64328]
[1717079344858,2.64255,3784.3,3783.2,0.025808]
[1717079349242,1.912,3784.1,3783.2,0.025808]
[1717079349441,1.912,3784.1,3783.3,1.979]
[1717079349867,1.912,3784.1,3783.4,0.03098679]
[1717079352430,0.26443884,3785.7,3783.4,0.03098679]
[1717079352431,2.64227,3784.7,3783.4,0.03098679]
[1717079353029,2.64227,3784.7,3783.4,35.03098679]
[1717079353932,2.64227,3784.7,3783.7,2.64289]
[1717079354148,1.912,3784.8,3784.0,2.64265]
[1717079354779,1.912,3784.8,3784.1,0.03301285]
[1717079354926,1.912,3784.8,3784.2,0.26756629]
[1717079355126,1.912,3784.8,3784.2,0.30049656]
[1717079355842,2.64198,3785.1,3784.2,0.30049656]
[1717079356039,1.912,3785.0,3784.2,0.30049656]
[1717079356428,2.64198,3785.1,3784.2,0.30049656]
[1717079356752,1.912,3784.9,3784.2,0.30049656]
[1717079357298,1.912,3784.9,3784.3,0.29431466]
[1717079357465,1.912,3784.9,3784.2,0.03293027]
[1717079357666,1.912,3784.9,3784.3,0.03615919]
[1717079358209,1.912,3784.9,3784.4,0.03609508]
[1717079358705,1.912,3784.9,3784.0,2.64265]
[1717079359013,1.912,3784.9,3784.5,0.03603098]
[1717079359166,1.912,3784.9,3784.0,2.64265]
[1717079359506,1.912,3784.9,3784.3,2.64246]
[1717079360087,1.912,3784.9,3784.4,0.03580103]
[1717079362436,2.64167,3785.5,3784.4,0.30362713]
[1717079362641,2.64167,3785.5,3784.5,2.64232]
[1717079362808,1.912,3785.5,3784.8,2.64212]
[1717079363009,1.912,3785.8,3784.8,2.906332]
[1717079363213,1.912,3785.8,3784.9,0.03225504]
[1717079364844,2.64156,3785.7,3784.9,0.03225504]
[1717079370702,1.912,3785.3,3784.9,0.03225504]
[1717079373578,1.912,3785.3,3784.9,0.04394489]
[1717079374284,2.64156,3785.7,3784.9,0.04394489]
[1717079374492,0.797,3785.0,3784.9,0.04394489]
[1717079375638,2.64156,3785.7,3784.9,0.04394489]
[1717079375865,0.797,3785.0,3784.9,0.04394489]
[1717079377754,2.64156,3785.7,3784.9,0.04394489]
[1717079377982,0.797,3785.0,3784.9,0.04394489]
[1717079379552,0.797,3785.2,3785.0,2.64198]
[1717079379777,2.64132,3786.0,3785.0,2.91057249]
[1717079379977,0.797,3785.6,3785.2,2.64184]
[1717079380337,0.797,3785.6,3785.3,0.0437046]
[1717079380539,0.797,3785.4,3785.2,2.64184]
[1717079380998,0.797,3785.4,3785.3,0.0437046]
[1717079381968,0.797,3785.4,3785.2,2.64184]
[1717079382139,0.797,3785.4,3785.3,0.0437046]
[1717079382352,2.64132,3786.0,3785.2,2.64184]
[1717079382588,2.64132,3786.0,3785.2,2.93288325]
[1717079382785,2.64132,3786.0,3785.2,2.64184]
[1717079382989,2.64132,3786.0,3785.3,0.0437046]
[1717079384084,2.64151,3785.8,3785.3,0.0437046]
[1717079384486,2.6416,3785.6,3784.8,2.64209]
[1717079384660,0.45526,3785.5,3785.4,0.04362451]
[1717079384992,0.45526,3785.5,3784.8,2.64209]
[1717079385410,0.45526,3785.5,3784.9,0.044025]
[1717079386359,2.6416,3785.6,3784.9,0.044025]
[1717079386554,4.7446,3785.6,3784.9,0.044025]
[1717079390152,3.0,3786.4,3784.9,0.044025]
[1717079390153,2.103,3785.2,3784.9,0.044025]
[1717079390458,2.103,3785.2,3785.0,0.0389768]
[1717079390951,2.103,3785.2,3784.6,7.36]
[1717079391158,2.103,3785.2,3785.1,0.03890559]
[1717079391356,4.74479,3785.4,3784.6,7.36]
[1717079391516,4.74479,3785.4,3785.1,0.03890559]
[1717079391859,5.219269,3785.4,3785.2,0.03883439]
[1717079392020,5.219269,3785.4,3784.6,7.36]
[1717079392220,4.74479,3785.4,3785.3,0.0387632]
[1717079392434,4.74479,3785.4,3784.6,7.36]
[1717079392835,4.74479,3785.4,3784.7,0.03919043]
[1717079394530,2.64193,3785.2,3784.7,0.03919043]
[1717079396134,2.103,3785.4,3784.7,0.03919043]
[1717079396135,2.64208,3784.9,3784.7,0.03919043]
[1717079396852,2.103,3785.0,3784.7,0.03919043]
[1717079397222,4.745,3785.0,3784.7,0.03919043]
[1717079397925,4.745,3785.0,3784.1,12.43]
[1717079398153,0.4745,3784.9,3784.8,0.04400912]
[1717079398365,0.4745,3784.9,3784.1,12.43]
[1717079398727,0.4745,3784.9,3784.2,0.04448988]
[1717079399937,0.06605636,3784.8,3784.2,0.04448988]
[1717079400166,2.103,3784.6,3784.2,0.04448988]
[1717079400470,2.85925618,3784.5,3784.2,0.04448988]
[1717079401825,0.21690618,3784.5,3784.2,0.04448988]
[1717079402073,2.103,3784.6,3784.2,0.04448988]
[1717079404661,6.72238222,3785.8,3784.2,0.04448988]
[1717079404662,2.64186,3785.3,3784.2,0.04448988]
[1717079404848,2.64158,3785.7,3784.5,2.64228]
[1717079405044,3.04966922,3785.7,3784.5,2.64228]
[1717079405228,2.64178,3785.4,3784.3,2.64245]
[1717079405462,2.64178,3785.4,3784.3,2.91114399]
[1717079405683,2.64178,3785.4,3784.3,2.64245]
[1717079405991,0.40808922,3785.7,3784.2,2.68704988]
[1717079405992,2.103,3784.7,3784.2,2.68704988]
[1717079406534,2.103,3785.1,3784.2,0.04448988]
[1717079407176,2.3133,3785.1,3784.2,0.04448988]
[1717079407372,7.74469,3785.5,3784.2,0.04448988]
[1717079408288,4.74469,3785.5,3784.6,2.64227]
[1717079408499,2.64169,3785.5,3784.6,2.64227]
[1717079411479,2.64169,3785.5,3784.6,2.906497]
[1717079412138,2.64169,3785.5,3784.6,0.264227]
[1717079412344,2.64188,3785.2,3784.2,37.68698988]
[1717079412543,2.64188,3785.2,3784.2,2.68698988]
[1717079412953,2.64208,3784.9,3784.2,0.04448988]
[1717079413158,0.48111362,3784.8,3784.2,0.04448988]
[1717079415301,2.64208,3784.9,3784.2,0.04448988]
[1717079416148,4.74486,3785.3,3784.3,0.04444731]
[1717079417367,4.74486,3785.3,3784.4,2.64242]
[1717079417768,4.74486,3785.3,3784.5,0.04428705]
[1717079418095,2.64159,3785.6,3784.6,2.64225]
[1717079418298,2.64159,3785.6,3784.7,0.04412681]
[1717079418668,2.64159,3785.6,3784.6,2.64225]
[1717079419715,4.74459,3785.6,3784.6,2.64225]
[1717079420005,4.74459,3785.6,3783.6,3.0]
[1717079420006,2.64177,3785.4,3784.2,2.64251]
[1717079420370,2.64177,3785.4,3784.5,2.64235]
[1717079420933,2.64177,3785.4,3784.6,0.04416511]
[1717079421072,3.0,3786.1,3784.7,2.64221]
[1717079421073,2.64149,3785.8,3784.7,2.64221]
[1717079421277,2.64149,3785.8,3784.8,0.04400488]
[1717079421545,2.64149,3785.8,3784.9,2.64206]
[1717079421673,2.64149,3785.8,3785.0,0.04384466]
[1717079422033,2.64149,3785.8,3785.0,0.31243513]
[1717079422171,2.64149,3785.8,3785.1,0.0528345]
[1717079422373,2.6412,3786.2,3785.1,2.64193]
[1717079422609,2.6412,3786.2,3785.3,2.64179]
[1717079422975,2.6412,3786.2,3785.4,0.03868824]
[1717079424638,2.64092,3786.6,3785.5,2.64159]
[1717079424814,2.64092,3786.6,3785.6,0.3208499]
[1717079425068,2.64092,3786.6,3785.6,0.364214]
[1717079425272,2.64092,3786.6,3785.7,2.64148]
[1717079425426,2.64061,3787.0,3785.9,2.64133]
[1717079425633,2.64061,3787.0,3785.9,2.93660219]
[1717079426131,2.64061,3787.0,3786.1,2.6412]
[1717079426353,2.64034,3787.4,3786.1,2.6412]
[1717079426685,2.103,3787.5,3786.0,35.0]
[1717079426686,2.103,3787.5,3786.6,2.64086]
[1717079426836,2.3133,3787.5,3786.6,2.64086]
[1717079427170,2.64007,3787.8,3786.6,2.64086]
[1717079432785,2.64007,3787.8,3786.9,2.64063]
[1717079433003,2.64007,3787.8,3787.0,35.0]
[1717079433154,2.6398,3788.2,3787.0,35.0]
[1717079433476,0.47428,3788.1,3787.0,35.0]
[1717079433784,0.47428,3788.1,3787.1,2.64052]
[1717079434949,2.6398,3788.2,3787.1,2.64052]
[1717079435274,2.103,3788.5,3787.4,2.6403]
[1717079436145,2.63953,3788.6,3787.4,2.6403]
[1717079436451,3.113783,3788.6,3787.4,2.6403]
[1717079436985,2.63953,3788.6,3787.4,2.6403]
[1717079437651,2.63926,3789.0,3787.7,2.64008]
[1717079438284,2.63926,3789.0,3788.0,2.63988]
[1717079438587,2.103,3789.2,3788.0,2.63988]
[1717079438588,2.63897,3789.4,3788.0,2.63988]
[1717079439103,2.63897,3789.4,3788.3,2.63967]
[1717079439263,2.63897,3789.4,3788.5,2.63955]
[1717079440152,2.63869,3789.8,3788.5,2.63955]
[1717079440778,2.63869,3789.8,3788.6,35.0]
[1717079441601,2.63905,3789.3,3788.1,2.63982]
[1717079441891,2.103,3789.1,3788.1,2.63982]
[1717079442199,2.103,3789.1,3787.2,7.0]
[1717079442200,2.70523901,3789.0,3787.7,2.64008]
[1717079442429,2.63946,3788.7,3787.7,2.64008]
[1717079442556,4.74246,3788.7,3787.7,2.64008]
[1717079443196,2.63962,3788.5,3787.3,2.64037]
[1717079443391,2.63975,3788.3,3787.3,2.64037]
[1717079444070,4.74275,3788.3,3787.3,2.64037]
[1717079444753,2.63975,3788.3,3787.3,2.64037]
[1717079444966,2.63942,3788.8,3787.3,2.64037]
[1717079445300,3.0,3788.7,3787.3,2.64037]
[1717079445500,0.563942,3788.6,3787.5,2.64024]
[1717079445658,2.63957,3788.5,3787.5,2.64024]
[1717079445854,2.63991,3788.1,3787.1,2.6405]
[1717079446083,0.263991,3788.0,3787.1,2.6405]
[1717079446889,2.63991,3788.1,3787.1,2.6405]
[1717079451103,2.63991,3788.1,3786.6,35.0]
[1717079451104,2.63958,3788.5,3787.4,2.6403]
[1717079452001,2.63933,3788.9,3787.7,2.64006]
[1717079452202,2.903263,3788.9,3787.7,2.904066]
[1717079452416,2.63933,3788.9,3788.0,2.63986]
[1717079453082,4.74233,3788.9,3788.0,2.63986]
[1717079455881,4.74233,3788.9,3788.1,35.0]
[1717079456081,4.74233,3788.9,3788.2,2.59588552]
[1717079457320,4.74233,3788.9,3788.0,2.63986]
[1717079457535,4.74233,3788.9,3788.0,37.63986]
[1717079458260,4.74233,3788.9,3788.0,2.63986]
[1717079461020,2.63896,3789.4,3788.3,2.63966]
[1717079461428,2.103,3789.2,3788.4,35.0]
[1717079461930,2.103,3788.8,3788.3,2.63966]
[1717079462116,0.2103,3788.7,3788.3,2.63966]
[1717079462322,2.103,3788.8,3788.3,2.63966]
[1717079462645,2.103,3788.8,3787.9,2.63992]
[1717079464835,2.63917,3789.1,3787.9,2.63992]
[1717079465149,2.103,3788.7,3787.9,2.63992]
[1717079466545,4.74217,3789.1,3787.9,2.63992]
[1717079466864,4.74217,3789.1,3788.1,2.63979]
[1717079468063,2.63832,3790.3,3788.4,2.63962]
[1717079468064,2.63892,3789.5,3788.4,2.63962]
[1717079468223,2.63892,3789.5,3788.5,0.263962]
[1717079469562,2.63892,3789.5,3788.6,2.63946]
[1717079473464,2.103,3789.2,3788.6,2.63946]
[1717079474073,2.103,3789.6,3788.9,2.63928]
[1717079474363,2.103,3789.6,3789.0,0.05277772]
[1717079474667,2.103,3789.6,3789.0,0.32198349]
[1717079474873,4.74137,3790.3,3789.1,2.63909]
[1717079475164,4.74137,3790.3,3789.3,2.63894]
[1717079476355,2.103,3789.9,3789.3,2.63894]
[1717079478138,3.0,3790.9,3788.9,2.63922]
[1717079478139,2.103,3790.5,3788.9,2.63922]
[1717079478344,2.103,3790.5,3788.2,12.43]
[1717079478345,2.103,3789.5,3789.0,7.36]
[1717079478542,2.103,3789.5,3788.5,9.9995]
[1717079479967,2.103,3788.7,3788.5,7.36]
[1717079480268,2.103,3788.7,3787.6,19.57]
[1717079480269,2.63949,3788.6,3787.9,7.36]
[1717079480470,2.103,3788.3,3787.9,7.36]
[1717079481443,2.103,3788.9,3788.0,2.63991]
[1717079481642,2.63925,3789.0,3788.0,2.63991]
[1717079481843,4.74225,3789.0,3788.1,0.999991]
[1717079482598,4.74196,3789.4,3788.2,2.63977]
[1717079482871,3.0,3789.3,3788.2,2.63977]
[1717079483078,3.0,3789.3,3788.3,0.3639761]
[1717079483286,4.74196,3789.4,3788.4,2.63963]
[1717079483569,2.103,3789.4,3788.4,37.63963]
[1717079484356,2.103,3789.4,3788.7,2.63939]
[1717079484529,2.63869,3789.8,3788.7,2.63939]
[1717079484733,2.103,3789.6,3788.8,0.263939]
[1717079485928,2.103,3789.6,3788.9,2.63927]
[1717079486135,2.103,3789.9,3788.9,2.63927]
[1717079486559,0.474142,3789.9,3788.9,2.63927]
[1717079486774,2.103,3789.4,3788.9,2.63927]
[1717079489571,2.103,3789.4,3788.9,37.63927]
[1717079490265,2.103,3789.4,3788.9,35.0]
[1717079490467,2.103,3789.4,3788.5,7.36]
[1717079490671,2.103,3789.0,3788.5,7.36]
[1717079490971,2.103,3788.6,3788.4,2.63957]
[1717079491177,2.103,3788.6,3788.1,35.0]
[1717079491352,2.103,3788.6,3788.0,9.99985]
[1717079491551,2.103,3788.6,3788.0,12.242835]
[1717079491938,2.103,3788.6,3788.0,9.99985]
[1717079494368,2.103,3788.6,3788.0,2.63985]
[1717079494569,2.63899,3789.4,3788.3,2.63968]
[1717079494829,2.103,3789.2,3788.4,0.263968]
[1717079495028,2.103,3789.2,3788.3,2.63968]
[1717079495315,2.63871,3789.8,3788.9,2.63927]
[1717079495972,2.103,3789.5,3788.9,2.63927]
[1717079496193,4.74171,3789.8,3788.9,2.63927]
[1717079497706,2.098,3789.7,3788.9,2.63927]
[1717079498016,2.098,3789.7,3788.9,3.639197]
[1717079505303,2.63883,3789.6,3788.9,2.63927]
[1717079505614,2.098,3789.3,3788.6,9.99949]
[1717079505939,2.098,3789.3,3789.0,0.02028564]
[1717079507313,2.098,3789.8,3789.0,0.02028564]
[1717079509781,2.098,3789.8,3789.1,2.63913]
[1717079510290,2.63859,3789.9,3789.1,2.63913]
[1717079510481,4.73659,3789.9,3789.1,2.63913]
[1717079510860,4.73659,3789.9,3789.1,37.63913]
[1717079511088,4.73659,3789.9,3789.1,40.23501552]
[1717079514214,4.73659,3789.9,3789.1,5.23501552]
[1717079514442,4.73659,3789.9,3789.1,2.63913]
[1717079515530,2.63838,3790.2,3789.4,2.63893]
[1717079515812,2.63838,3790.2,3789.5,0.263893]
[1717079517113,2.098,3789.9,3789.0,37.65944564]
[1717079517416,2.098,3789.9,3789.0,2.65944564]
[1717079518116,4.7366,3789.9,3789.0,2.65944564]
[1717079524814,4.7366,3789.9,3789.1,35.0]
[1717079525134,4.7366,3789.9,3789.2,2.63906]
[1717079525347,2.098,3789.9,3789.2,2.63906]
[1717079526648,2.571639,3789.9,3789.2,2.63906]
[1717079528601,2.571639,3789.9,3789.0,0.02028564]
[1717079528602,0.473639,3789.9,3789.0,0.02028564]
[1717079528804,2.098,3789.4,3789.0,0.02028564]
[1717079530451,2.7050018,3789.3,3789.0,0.02028564]
[1717079530613,2.63914,3789.1,3789.0,0.02028564]